bitfinex/quotes_BTCUSD_20240902
["timestamp","ask_amount","ask_price","bid_price","bid_amount"]
[1725263680231,0.2623044,57696.0,57695.0,0.014]
[1725263681141,0.2623044,57696.0,57695.0,0.007]
[1725263681375,0.5049554,57696.0,57695.0,0.007]
[1725263681604,0.5049554,57696.0,57695.0,0.009]
[1725263681877,0.121328,57695.0,57690.0,0.0735]
[1725263682094,0.243455,57699.0,57690.0,0.0735]
[1725263682095,0.08459331,57698.0,57691.0,0.121335]
[1725263682327,0.121324,57697.0,57692.0,0.0437518]
[1725263682549,0.121324,57697.0,57695.0,0.01]
[1725263682771,0.121324,57697.0,57695.0,0.02]
[1725263683041,0.121324,57697.0,57695.0,0.01]
[1725263683262,0.121324,57697.0,57692.0,0.0437518]
[1725263683490,0.121324,57697.0,57696.0,0.0701]
[1725263683930,0.121324,57697.0,57694.0,0.0958]
[1725263684147,0.121327,57696.0,57693.0,0.0747]
[1725263684415,0.242648,57697.0,57693.0,0.0747]
[1725263684630,0.243455,57699.0,57692.0,0.009]
[1725263684864,0.121326,57696.0,57692.0,0.009]
[1725263685305,0.121326,57696.0,57691.0,0.193735]
[1725263685549,0.1485237,57696.0,57693.0,0.01]
[1725263685777,0.1485237,57696.0,57693.0,0.019]
[1725263686221,0.1485237,57696.0,57693.0,0.009]
[1725263686662,0.121326,57696.0,57692.0,0.0635218]
[1725263686880,0.121326,57696.0,57692.0,0.01]
[1725263687320,0.121323,57698.0,57692.0,0.01]
[1725263688306,0.121323,57698.0,57693.0,0.01]
[1725263688541,0.121323,57697.0,57693.0,0.01]
[1725263688763,0.121323,57697.0,57692.0,0.129333]
[1725263689238,0.121323,57697.0,57692.0,0.137333]
[1725263689458,0.121323,57697.0,57692.0,0.129333]
[1725263689690,0.121323,57697.0,57692.0,0.121333]
[1725263689922,0.121323,57697.0,57693.0,0.009]
[1725263690145,0.364776,57699.0,57693.0,0.009]
[1725263690398,0.121321,57698.0,57695.0,0.1596]
[1725263690628,0.000816,57699.0,57698.0,0.121321]
[1725263690881,0.000816,57699.0,57698.0,0.195921]
[1725263691116,0.000816,57699.0,57698.0,0.534463]
[1725263691347,0.000816,57699.0,57698.0,0.291821]
[1725263692026,0.000816,57699.0,57698.0,0.305821]
[1725263692253,0.000816,57699.0,57698.0,0.548463]
[1725263692486,0.000816,57699.0,57698.0,0.1845]
[1725263694537,0.02801221,57699.0,57698.0,0.3606691]
[1725263694761,0.02801221,57699.0,57698.0,0.305821]
[1725263695503,0.02801221,57699.0,57698.0,0.548463]
[1725263695504,0.000816,57699.0,57698.0,0.548463]
[1725263696232,0.000816,57699.0,57698.0,0.305821]
[1725263696464,0.000816,57699.0,57698.0,0.548463]
[1725263697662,0.000816,57699.0,57698.0,0.305821]
[1725263700129,0.000816,57699.0,57698.0,0.548463]
[1725263700930,0.000816,57699.0,57698.0,0.305821]
[1725263701136,0.000816,57699.0,57698.0,0.548463]
[1725263701836,0.000816,57699.0,57698.0,0.8702158]
[1725263702039,0.000816,57699.0,57698.0,0.791105]
[1725263705526,0.02801135,57699.0,57698.0,0.791105]
[1725263706747,0.02801135,57699.0,57698.0,1.033747]
[1725263708331,0.02801135,57699.0,57698.0,1.36096374]
[1725263708332,0.000816,57699.0,57698.0,1.36096374]
[1725263708549,0.000816,57699.0,57698.0,1.52191506]
[1725263708794,0.000816,57699.0,57698.0,1.52691506]
[1725263709017,0.000816,57699.0,57698.0,1.52191506]
[1725263709241,0.000815,57702.0,57701.0,1.12767974]
[1725263709455,1e-06,57702.0,57701.0,1.22767974]
[1725263709669,1e-06,57702.0,57701.0,1.85331287]
[1725263709889,0.00816,57711.0,57701.0,1.85331287]
[1725263709890,0.00816,57711.0,57710.0,0.61148]
[1725263710146,0.00816,57711.0,57710.0,1.17379422]
[1725263710361,0.00816,57711.0,57710.0,1.42638622]
[1725263710574,0.00816,57711.0,57710.0,1.52638622]
[1725263710801,0.00816,57711.0,57710.0,1.67422484]
[1725263711016,0.00816,57711.0,57710.0,1.67922484]
[1725263711503,0.00816,57711.0,57710.0,1.69522484]
[1725263711937,0.00816,57711.0,57710.0,1.59522484]
[1725263712156,0.00816,57711.0,57710.0,1.59322484]
[1725263713463,0.00816,57711.0,57710.0,1.60722484]
[1725263715016,0.00816,57711.0,57710.0,1.70922484]
[1725263715680,0.00816,57711.0,57710.0,1.95181684]
[1725263716595,0.00816,57711.0,57710.0,1.97481684]
[1725263716825,0.00816,57711.0,57710.0,1.9815689]
[1725263717263,0.00815,57715.0,57714.0,1.24940922]
[1725263717480,0.00815,57715.0,57714.0,1.54769505]
[1725263718848,0.00815,57715.0,57714.0,1.64769505]
[1725263719135,0.00815,57715.0,57714.0,1.66169505]
[1725263719586,0.00815,57715.0,57714.0,1.67569505]
[1725263719811,0.00815,57715.0,57714.0,1.66169505]
[1725263720038,0.00815,57715.0,57714.0,1.67569505]
[1725263720515,0.00815,57715.0,57714.0,1.64769505]
[1725263720750,0.00815,57715.0,57714.0,1.66169505]
[1725263720970,0.00815,57715.0,57714.0,1.67569505]
[1725263721200,1e-06,57719.0,57718.0,1.351069]
[1725263721428,1e-06,57719.0,57718.0,1.79049122]
[1725263722339,0.00816,57725.0,57723.0,1.66977522]
[1725263722565,0.00816,57725.0,57723.0,1.76977522]
[1725263723908,0.00816,57725.0,57723.0,1.78377522]
[1725263724135,0.00816,57725.0,57723.0,1.90926105]
[1725263724365,0.00816,57725.0,57723.0,1.52390183]
[1725263724590,0.00816,57725.0,57723.0,1.393416]
[1725263725035,0.00816,57725.0,57723.0,1.398416]
[1725263725263,0.00816,57725.0,57723.0,1.412416]
[1725263725715,0.00816,57725.0,57723.0,1.398416]
[1725263726885,0.00816,57725.0,57723.0,1.412416]
[1725263727312,0.00816,57725.0,57723.0,1.56773982]
[1725263727763,0.00816,57725.0,57723.0,1.56973982]
[1725263727974,0.00816,57725.0,57723.0,1.56773982]
[1725263728639,0.00816,57725.0,57723.0,1.83327682]
[1725263729540,0.00816,57725.0,57723.0,1.82127682]
[1725263729768,0.00816,57725.0,57723.0,1.83527682]
[1725263730202,1e-06,57724.0,57723.0,1.82795268]
[1725263730641,1e-06,57724.0,57723.0,1.84195268]
[1725263730856,1e-06,57724.0,57723.0,1.83527682]
[1725263731075,1e-06,57724.0,57723.0,1.82127682]
[1725263731290,1e-06,57724.0,57723.0,1.83527682]
[1725263731721,1e-06,57724.0,57723.0,1.56973982]
[1725263732603,1e-06,57724.0,57723.0,1.56773982]
[1725263734893,1e-06,57724.0,57723.0,1.56973982]
[1725263735331,1e-06,57724.0,57723.0,1.59273982]
[1725263737396,1e-06,57724.0,57723.0,1.83527682]
[1725263738110,1e-06,57724.0,57723.0,1.70900882]
[1725263738355,1e-06,57724.0,57723.0,1.83027682]
[1725263739067,0.00816,57733.0,57727.0,1.66138222]
[1725263739325,0.00816,57733.0,57727.0,1.90738285]
[1725263740041,0.00816,57733.0,57727.0,1.90538285]
[1725263740502,0.00816,57733.0,57727.0,1.90738285]
[1725263740732,0.00816,57733.0,57727.0,1.92138285]
[1725263741186,0.00816,57733.0,57727.0,1.93538285]
[1725263742608,0.00816,57733.0,57727.0,1.93338285]
[1725263742843,0.00816,57733.0,57727.0,1.93538285]
[1725263744619,0.00816,57733.0,57727.0,1.93338285]
[1725263744863,0.00816,57733.0,57727.0,1.93538285]
[1725263749341,0.00816,57733.0,57727.0,1.93338285]
[1725263749556,0.00816,57733.0,57727.0,1.93538285]
[1725263750249,0.00816,57733.0,57727.0,1.96144249]
[1725263750250,1e-06,57728.0,57727.0,1.96144249]
[1725263750498,1e-06,57728.0,57727.0,1.95944249]
[1725263750968,1e-06,57728.0,57727.0,1.94744249]
[1725263751240,1e-06,57728.0,57727.0,1.90738285]
[1725263751461,1e-06,57728.0,57727.0,1.96144137]
[1725263751686,1e-06,57728.0,57727.0,1.94744137]
[1725263753257,1e-06,57728.0,57727.0,1.93538285]
[1725263753923,1e-06,57728.0,57727.0,1.96144137]
[1725263754400,1e-06,57728.0,57727.0,1.93538285]
[1725263755152,1e-06,57728.0,57727.0,1.96144136]
[1725263755602,1e-06,57728.0,57727.0,2.01308111]
[1725263756285,1e-06,57728.0,57727.0,2.01333723]
[1725263756766,1e-06,57728.0,57727.0,2.01333724]
[1725263757261,1e-06,57728.0,57727.0,2.01334537]
[1725263757494,1e-06,57728.0,57727.0,1.98728686]
[1725263757791,1e-06,57728.0,57727.0,2.0133449]
[1725263758264,1e-06,57728.0,57727.0,2.01335655]
[1725263758505,1e-06,57728.0,57727.0,2.01135655]
[1725263758732,1e-06,57728.0,57727.0,2.01335655]
[1725263759189,1e-06,57728.0,57727.0,1.96144089]
[1725263759426,1e-06,57728.0,57727.0,2.01336885]
[1725263759663,1e-06,57728.0,57727.0,1.96144089]
[1725263760374,1e-06,57728.0,57727.0,2.0393327]
[1725263760608,1e-06,57728.0,57727.0,1.93538285]
[1725263760849,1e-06,57728.0,57727.0,2.03935169]
[1725263761315,1e-06,57728.0,57727.0,1.79483169]
[1725263761551,1e-06,57728.0,57727.0,1.59712081]
[1725263762276,1e-06,57728.0,57727.0,1.50825372]
[1725263762521,1e-06,57728.0,57727.0,1.22934]
[1725263762996,1e-06,57728.0,57727.0,1.25539981]
[1725263763475,1e-06,57728.0,57727.0,0.98682]
[1725263765301,1e-06,57728.0,57727.0,1.00310894]
[1725263766418,1e-06,57728.0,57727.0,1.12288081]
[1725263766669,1e-06,57728.0,57727.0,1.12288067]
[1725263769640,1e-06,57728.0,57727.0,1.12288054]
[1725263770318,1e-06,57728.0,57727.0,1.00310867]
[1725263772565,1e-06,57728.0,57727.0,1.00310838]
[1725263776744,1e-06,57728.0,57727.0,1.0031085]
[1725263779679,0.03866,57733.0,57732.0,0.604247]
[1725263779680,0.03199573,57733.0,57732.0,0.604247]
[1725263779961,0.28338701,57748.0,57736.0,0.242483]
[1725263780196,0.121223,57745.0,57740.0,0.121231]
[1725263780533,0.121223,57745.0,57741.0,0.12123]
[1725263780961,0.02717338,57744.0,57741.0,0.12123]
[1725263782326,0.02717338,57744.0,57741.0,0.13523]
[1725263783005,0.14839738,57744.0,57741.0,0.014]
[1725263783221,0.02717338,57744.0,57741.0,0.13523]
[1725263783479,0.02717338,57744.0,57741.0,0.014]
[1725263783708,0.14839738,57744.0,57741.0,0.028]
[1725263783928,0.121224,57744.0,57741.0,0.028]
[1725263784635,0.08445122,57746.0,57741.0,0.028]
[1725263784636,0.121223,57745.0,57741.0,0.028]
[1725263785562,0.121223,57745.0,57741.0,0.014]
[1725263786747,0.121223,57745.0,57740.0,0.121232]
[1725263786981,0.121223,57745.0,57741.0,0.014]
[1725263787435,0.121223,57745.0,57741.0,0.028]
[1725263787665,0.121223,57745.0,57741.0,0.014]
[1725263788120,0.121223,57745.0,57741.0,0.13523]
[1725263788775,0.121223,57745.0,57741.0,0.14923]
[1725263789455,0.08445122,57746.0,57741.0,0.028]
[1725263789695,0.121218,57747.0,57742.0,0.121227]
[1725263789933,0.121218,57747.0,57743.0,0.121226]
[1725263790160,0.02717265,57746.0,57743.0,0.121226]
[1725263790656,0.121218,57747.0,57743.0,0.121226]
[1725263790892,0.17286687,57747.0,57743.0,0.121226]
[1725263791116,0.121218,57747.0,57743.0,0.121226]
[1725263791329,0.000816,57745.0,57743.0,0.121226]
[1725263791555,0.000816,57745.0,57743.0,0.135226]
[1725263791773,0.000816,57745.0,57744.0,0.121224]
[1725263793330,0.02798852,57745.0,57744.0,0.121224]
[1725263794002,0.02798852,57745.0,57744.0,0.135224]
[1725263794466,0.02798852,57745.0,57744.0,0.149224]
[1725263795386,0.11243974,57745.0,57744.0,0.028]
[1725263796610,0.52778244,57745.0,57744.0,0.028]
[1725263796836,0.5536203,57745.0,57744.0,0.028]
[1725263797078,0.52644778,57745.0,57744.0,0.028]
[1725263800265,0.55362165,57745.0,57744.0,0.028]
[1725263800765,0.8219045,57745.0,57744.0,0.028]
[1725263801015,0.79609417,57745.0,57744.0,0.028]
[1725263801251,0.71855309,57745.0,57744.0,0.028]
[1725263801720,0.71855309,57745.0,57744.0,0.014]
[1725263802200,0.71855309,57745.0,57744.0,0.025]
[1725263802201,0.82193662,57745.0,57744.0,0.025]
[1725263802431,0.82193662,57745.0,57734.0,0.121245]
[1725263802432,0.121236,57739.0,57734.0,0.121245]
[1725263802664,0.20568722,57739.0,57735.0,0.121243]
[1725263802893,0.2941619,57741.0,57735.0,0.121243]
[1725263803128,0.02717542,57739.0,57735.0,0.121243]
[1725263803657,0.02717542,57739.0,57736.0,0.082]
[1725263804132,0.02717542,57739.0,57736.0,0.203241]
[1725263805086,0.02717542,57739.0,57736.0,0.121241]
[1725263805315,0.02717542,57739.0,57736.0,0.135241]
[1725263806022,0.02717542,57739.0,57736.0,0.149241]
[1725263806929,0.121233,57740.0,57736.0,0.149241]
[1725263808083,0.121233,57740.0,57736.0,0.135241]
[1725263808310,0.121233,57740.0,57736.0,0.148241]
[1725263809008,0.121233,57740.0,57736.0,0.027]
[1725263809228,0.121233,57740.0,57736.0,0.013]
[1725263809676,0.121233,57740.0,57736.0,0.026]
[1725263810169,0.14840824,57740.0,57736.0,0.026]
[1725263811756,0.121235,57739.0,57736.0,0.026]
[1725263812915,0.121235,57739.0,57736.0,0.013]
[1725263813599,0.121235,57739.0,57736.0,0.027]
[1725263814756,0.121235,57739.0,57736.0,0.0418965]
[1725263815450,0.02717524,57740.0,57736.0,0.0418965]
[1725263815676,0.121236,57739.0,57736.0,0.0418965]
[1725263816655,0.121237,57738.0,57736.0,0.0278965]
[1725263816890,0.121237,57738.0,57736.0,0.0408965]
[1725263817367,0.121237,57738.0,57736.0,0.0278965]
[1725263817832,0.121237,57738.0,57736.0,0.0008965]
[1725263818063,0.121237,57738.0,57736.0,0.0148965]
[1725263818540,0.14840924,57740.0,57736.0,0.0148965]
[1725263818775,0.121235,57739.0,57736.0,0.0288965]
[1725263819260,0.121235,57739.0,57736.0,0.0148965]
[1725263819493,0.121235,57739.0,57736.0,0.0288965]
[1725263819932,0.121235,57739.0,57736.0,0.0148965]
[1725263820389,0.121235,57739.0,57736.0,0.0288965]
[1725263820842,0.363717,57737.0,57736.0,0.0288965]
[1725263821277,0.363717,57737.0,57736.0,0.0148965]
[1725263821548,0.46713853,57737.0,57736.0,0.0148965]
[1725263821761,0.46709633,57737.0,57736.0,0.0288965]
[1725263821979,0.49299392,57737.0,57736.0,0.0288965]
[1725263822189,0.8096004,57737.0,57736.0,0.0148965]
[1725263822431,0.606195,57737.0,57736.0,0.0098965]
[1725263822652,0.73536508,57737.0,57736.0,0.0098965]
[1725263822898,0.74616508,57737.0,57736.0,0.0118965]
[1725263823127,0.616995,57737.0,57736.0,0.0148965]
[1725263823348,0.74616206,57737.0,57736.0,0.0038965]
[1725263823566,0.74333493,57737.0,57736.0,0.0048965]
[1725263823794,1.01499225,57737.0,57736.0,0.0048965]
[1725263824031,1.01299225,57737.0,57736.0,0.0038965]
[1725263824508,1.03881938,57737.0,57736.0,0.0008965]
[1725263824740,0.90965232,57737.0,57736.0,0.0018965]
[1725263824974,1.84300738,57737.0,57736.0,0.0008965]
[1725263825221,1.82636738,57737.0,57736.0,0.0008965]
[1725263825427,1.92836738,57737.0,57736.0,0.0008965]
[1725263825705,2.17084538,57737.0,57736.0,0.0008965]
[1725263825979,2.17084538,57737.0,57727.0,0.0008976]
[1725263825980,0.859606,57728.0,57727.0,0.0008976]
[1725263826221,4.05949013,57728.0,57727.0,0.0008976]
[1725263826447,0.861637,57726.0,57725.0,0.0008976]
[1725263826680,1.04608822,57726.0,57725.0,0.0008976]
[1725263826908,2.61072622,57726.0,57725.0,0.0008976]
[1725263828326,2.69118485,57726.0,57725.0,0.0008976]
[1725263828804,2.81997119,57726.0,57725.0,0.0008976]
[1725263829030,2.82497119,57726.0,57725.0,0.0008976]
[1725263829513,2.69618485,57726.0,57725.0,0.0008976]
[1725263829743,2.70518485,57726.0,57725.0,0.0008976]
[1725263829970,2.69518485,57726.0,57725.0,0.0008976]
[1725263830205,2.69118485,57726.0,57725.0,0.0008976]
[1725263830624,2.83180038,57726.0,57725.0,0.0018976]
[1725263830851,2.70318485,57726.0,57725.0,0.0018976]
[1725263831084,2.69618485,57726.0,57725.0,0.0008976]
[1725263831309,2.70318485,57726.0,57725.0,0.0018976]
[1725263832035,2.70818485,57726.0,57725.0,0.0018976]
[1725263832503,2.79228467,57726.0,57725.0,0.0028976]
[1725263832957,2.71518485,57726.0,57725.0,0.0028976]
[1725263833210,2.79228467,57726.0,57725.0,0.0028976]
[1725263833677,2.76656967,57726.0,57725.0,0.0028976]
[1725263833912,2.71518485,57726.0,57725.0,0.0028976]
[1725263834152,2.76656967,57726.0,57725.0,0.0028976]
[1725263834421,2.63472622,57726.0,57725.0,0.0028976]
[1725263834683,2.68611104,57726.0,57725.0,0.0028976]
[1725263835655,2.63472622,57726.0,57725.0,0.0028976]
[1725263837474,3.56182122,57726.0,57725.0,0.0028976]
[1725263837697,3.73037286,57726.0,57725.0,0.0028976]
[1725263838140,3.04115786,57726.0,57725.0,0.0028976]
[1725263838397,2.86071322,57726.0,57725.0,0.0028976]
[1725263838625,2.43868622,57726.0,57725.0,0.0028976]
[1725263841669,1.55652622,57726.0,57725.0,0.0028976]
[1725263841915,1.012112,57726.0,57725.0,0.0028976]
[1725263842200,0.019,57726.0,57725.0,0.1881976]
[1725263842718,0.019,57726.0,57725.0,0.3094616]
[1725263842977,0.019,57726.0,57725.0,0.38920492]
[1725263843217,0.019,57726.0,57725.0,0.38820492]
[1725263843218,0.012,57726.0,57725.0,0.38820492]
[1725263843513,0.08445122,57727.0,57725.0,0.3074616]
[1725263843769,0.08445122,57727.0,57726.0,0.196062]
[1725263844041,0.08445122,57727.0,57726.0,0.440587]
[1725263844279,0.08445122,57733.0,57732.0,0.1763]
[1725263845016,0.08445122,57733.0,57732.0,0.0758]
[1725263845020,0.44819322,57733.0,57732.0,0.0758]
[1725263845263,0.20569822,57733.0,57732.0,0.0758]
[1725263845499,0.33287999,57733.0,57732.0,0.0758]
[1725263846526,0.33587999,57733.0,57732.0,0.0758]
[1725263846997,0.33987999,57733.0,57732.0,0.0758]
[1725263847966,0.097665,57733.0,57732.0,0.0758]
[1725263848206,0.09145122,57733.0,57732.0,0.0758]
[1725263848441,0.21269822,57733.0,57732.0,0.0758]
[1725263848915,0.09145122,57733.0,57732.0,0.0758]
[1725263849433,0.09145122,57733.0,57732.0,0.17]
[1725263849960,0.09145122,57733.0,57732.0,0.293249]
[1725263850223,0.09145122,57733.0,57732.0,0.172]
[1725263850940,0.09145122,57733.0,57732.0,0.293249]
[1725263851191,0.242468,57740.0,57732.0,0.1728965]
[1725263851452,0.08445122,57735.0,57734.0,0.0825]
[1725263852192,0.08445122,57735.0,57734.0,0.08087087]
[1725263853389,0.09645122,57735.0,57734.0,0.08187087]
[1725263853626,0.12363146,57735.0,57734.0,0.08187087]
[1725263854355,0.03918024,57735.0,57734.0,0.25738781]
[1725263854601,0.03918024,57735.0,57734.0,0.35258781]
[1725263855357,0.03318024,57735.0,57734.0,0.29831587]
[1725263855591,0.03318024,57735.0,57734.0,0.30531587]
[1725263855827,0.02718024,57735.0,57734.0,0.30431587]
[1725263856055,0.02818024,57735.0,57734.0,0.31231587]
[1725263856816,0.02818024,57735.0,57734.0,0.55680687]
[1725263858000,0.001,57735.0,57734.0,0.55680687]
[1725263858252,0.001,57735.0,57734.0,0.79929787]
[1725263861266,0.02817852,57735.0,57734.0,0.79929787]
[1725263861726,0.001,57735.0,57734.0,0.79929787]
[1725263862939,0.001816,57735.0,57734.0,0.79929787]
[1725263863172,0.21676422,57745.0,57735.0,0.0734]
[1725263863399,0.08445122,57742.0,57736.0,0.0767]
[1725263863625,0.08445122,57742.0,57738.0,0.0767]
[1725263863877,0.08445122,57742.0,57741.0,0.0767]
[1725263863878,0.20567922,57742.0,57741.0,0.0767]
[1725263864362,0.23285707,57742.0,57741.0,0.0767]
[1725263866192,0.23385707,57742.0,57741.0,0.0767]
[1725263866703,0.23485707,57742.0,57741.0,0.0767]
[1725263866955,0.20767922,57742.0,57741.0,0.0767]
[1725263867436,0.20667922,57742.0,57741.0,0.0767]
[1725263868698,0.20767922,57742.0,57741.0,0.0767]
[1725263870371,0.23485702,57742.0,57741.0,0.0767]
[1725263871693,0.11362902,57742.0,57741.0,0.0767]
[1725263871936,0.11362902,57742.0,57741.0,0.197931]
[1725263871937,0.0291778,57742.0,57741.0,0.197931]
[1725263872176,0.0291778,57742.0,57741.0,0.297431]
[1725263872421,0.0291778,57742.0,57741.0,0.61775]
[1725263872637,0.0291778,57742.0,57741.0,0.539893]
[1725263873116,0.0271778,57742.0,57741.0,0.539893]
[1725263873338,0.0271778,57742.0,57741.0,0.543893]
[1725263873586,0.0271778,57742.0,57741.0,0.546893]
[1725263875925,0.0271778,57742.0,57741.0,0.304431]
[1725263876361,0.0271778,57742.0,57741.0,0.3053275]
[1725263878149,0.0271778,57742.0,57741.0,0.3073275]
[1725263879739,0.000815,57743.0,57741.0,0.3073275]
[1725263879957,0.000815,57743.0,57742.0,0.002]
[1725263880412,0.000815,57743.0,57741.0,0.3053275]
[1725263880886,0.000815,57743.0,57742.0,0.530285]
[1725263881120,0.000815,57743.0,57742.0,0.772742]
[1725263881343,0.000815,57743.0,57742.0,0.530285]
[1725263881574,0.000815,57743.0,57742.0,0.287828]
[1725263882032,0.000815,57743.0,57742.0,0.289828]
[1725263882504,0.000815,57743.0,57742.0,0.532285]
[1725263882730,0.001815,57743.0,57742.0,0.544285]
[1725263883194,0.001815,57743.0,57742.0,0.0986]
[1725263883489,0.001815,57743.0,57742.0,0.025]
[1725263883490,0.124041,57743.0,57742.0,0.025]
[1725263884308,0.366494,57743.0,57742.0,0.025]
[1725263887509,0.41812497,57743.0,57742.0,0.025]
[1725263889486,0.366494,57743.0,57742.0,0.025]
[1725263890233,0.608947,57743.0,57742.0,0.025]
[1725263891602,0.68639346,57743.0,57742.0,0.025]
[1725263892045,0.71356996,57743.0,57742.0,0.025]
[1725263893588,0.6361235,57743.0,57742.0,0.025]
[1725263896659,0.73959721,57743.0,57742.0,0.025]
[1725263896887,0.71242071,57743.0,57742.0,0.025]
[1725263898066,0.608947,57743.0,57742.0,0.025]
[1725263899230,1.13912713,57743.0,57742.0,0.025]
[1725263899682,1.39900314,57743.0,57742.0,0.025]
[1725263899915,0.005,57741.0,57732.0,0.0008965]
[1725263900152,0.861132,57733.0,57732.0,0.0008965]
[1725263900393,3.218612,57733.0,57732.0,0.0008965]
[1725263900624,3.241612,57733.0,57732.0,0.0008965]
[1725263900856,3.41016364,57733.0,57732.0,0.0008965]
[1725263901083,3.42366364,57733.0,57732.0,0.0008965]
[1725263901303,3.42366364,57733.0,57732.0,0.0048965]
[1725263901547,3.255112,57733.0,57732.0,0.0048965]
[1725263901768,3.255112,57733.0,57732.0,0.0008965]
[1725263901994,3.255112,57733.0,57732.0,0.0038965]
[1725263903382,2.1875044,57733.0,57732.0,0.0048965]
[1725263903608,2.33032104,57733.0,57732.0,0.0008965]
[1725263903836,2.31267604,57733.0,57732.0,0.0008965]
[1725263904058,2.22556204,57733.0,57732.0,0.0008965]
[1725263904304,2.22456204,57733.0,57732.0,0.0008965]
[1725263904747,2.22556204,57733.0,57732.0,0.0008965]
[1725263905948,2.12294204,57733.0,57732.0,0.0008965]
[1725263906392,2.25201354,57733.0,57732.0,0.0008965]
[1725263906863,2.0562775,57733.0,57732.0,0.0008965]
[1725263909439,2.05622348,57733.0,57732.0,0.0008965]
[1725263909664,2.29871848,57733.0,57732.0,0.0008965]
[1725263909900,2.282101,57733.0,57732.0,0.0008965]
[1725263911511,2.287101,57733.0,57732.0,0.0008965]
[1725263911741,2.49633784,57733.0,57732.0,0.0008965]
[1725263911970,2.49911113,57733.0,57732.0,0.0008965]
[1725263912200,3.06679348,57733.0,57732.0,0.0008965]
[1725263912433,2.6539321,57733.0,57732.0,0.0008965]
[1725263913191,2.6267469,57733.0,57732.0,0.0008965]
[1725263913428,2.65393362,57733.0,57732.0,0.0008965]
[1725263914104,2.79205894,57733.0,57732.0,0.0008965]
[1725263914320,2.63723797,57733.0,57732.0,0.0008965]
[1725263915217,3.90483797,57733.0,57732.0,0.0008965]
[1725263915448,7.03548797,57733.0,57732.0,0.0008965]
[1725263915693,7.07448697,57733.0,57732.0,0.0008965]
[1725263915926,7.01198697,57733.0,57732.0,0.0008965]
[1725263916159,5.47560733,57733.0,57732.0,0.0008965]
[1725263916388,3.99918933,57733.0,57732.0,0.0008965]
[1725263916613,4.10083201,57733.0,57732.0,0.0008965]
[1725263917522,4.10082477,57733.0,57732.0,0.0008965]
[1725263918622,3.97200261,57733.0,57732.0,0.0008965]
[1725263919075,4.14055425,57733.0,57732.0,0.0008965]
[1725263919517,4.26937357,57733.0,57732.0,0.0008965]
[1725263919800,4.14055425,57733.0,57732.0,0.0008965]
[1725263920023,4.08419358,57733.0,57732.0,0.0008965]
[1725263920259,4.12677927,57733.0,57732.0,0.0008965]
[1725263920502,4.14397927,57733.0,57732.0,0.0008965]
[1725263921187,2.87637927,57733.0,57732.0,0.0008965]
[1725263923104,2.85917927,57733.0,57732.0,0.0008965]
[1725263925889,1.51690227,57733.0,57732.0,0.0008965]
[1725263926385,5.60530327,57733.0,57732.0,0.0008965]
[1725263926836,5.44745327,57733.0,57732.0,0.0008965]
[1725263927067,5.42026758,57733.0,57732.0,0.0008965]
[1725263927344,6.68786758,57733.0,57732.0,0.0008965]
[1725263927562,6.30192258,57733.0,57732.0,0.0008965]
[1725263927784,6.16669258,57733.0,57732.0,0.0008965]
[1725263928013,5.99814094,57733.0,57732.0,0.0008965]
[1725263928379,6.12695453,57733.0,57732.0,0.0008965]
[1725263928617,4.77689994,57733.0,57732.0,0.0008965]
[1725263929380,4.90571353,57733.0,57732.0,0.0008965]
[1725263929752,3.82260653,57733.0,57732.0,0.0008965]
[1725263929993,3.99115817,57733.0,57732.0,0.0008965]
[1725263931426,3.88952972,57733.0,57732.0,0.0008965]
[1725263932080,3.72097808,57733.0,57732.0,0.0008965]
[1725263932298,3.22621508,57733.0,57732.0,0.0008965]
[1725263932519,2.26400014,57733.0,57732.0,0.0834965]
[1725263932768,2.47743704,57733.0,57732.0,0.1880965]
[1725263932994,1.94540685,57733.0,57732.0,0.1880965]
[1725263933215,0.60046508,57733.0,57732.0,0.1880965]
[1725263934089,0.84296008,57733.0,57732.0,0.1880965]
[1725263935029,2.35219185,57733.0,57732.0,0.1880965]
[1725263935251,1.44927185,57733.0,57732.0,0.1880965]
[1725263935475,1.04439485,57733.0,57732.0,0.1880965]
[1725263936130,1.10070759,57733.0,57732.0,0.1880965]
[1725263936355,0.71121605,57733.0,57732.0,0.1880965]
[1725263936582,0.83246305,57733.0,57732.0,0.1880965]
[1725263936986,1.04777291,57733.0,57732.0,0.1880965]
[1725263937259,0.99618068,57733.0,57732.0,0.1880965]
[1725263937477,0.87208768,57733.0,57732.0,0.1880965]
[1725263937726,0.92369028,57733.0,57732.0,0.1880965]
[1725263938252,0.87208768,57733.0,57732.0,0.1880965]
[1725263938487,1.28161568,57733.0,57732.0,0.1880965]
[1725263938720,1.35901559,57733.0,57732.0,0.1880965]
[1725263939407,1.35905125,57733.0,57732.0,0.1880965]
[1725263940384,1.30879951,57733.0,57732.0,0.1880965]
[1725263941064,1.16794883,57733.0,57732.0,0.1880965]
[1725263941302,1.30879951,57733.0,57732.0,0.1880965]
[1725263942756,1.41213052,57733.0,57732.0,0.1880965]
[1725263943236,1.30879951,57733.0,57732.0,0.1880965]
[1725263944184,1.55129451,57733.0,57732.0,0.1880965]
[1725263944412,1.29703478,57733.0,57732.0,0.1880965]
[1725263944641,1.43788546,57733.0,57732.0,0.1880965]
[1725263945358,1.43805322,57733.0,57732.0,0.1880965]
[1725263945614,1.30879951,57733.0,57732.0,0.1880965]
[1725263946067,2.36470651,57733.0,57732.0,0.1880965]
[1725263946527,1.68547351,57733.0,57732.0,0.1880965]
[1725263946967,1.65828968,57733.0,57732.0,0.1880965]
[1725263948382,1.65910568,57733.0,57732.0,0.1880965]
[1725263949063,1.90160068,57733.0,57732.0,0.1880965]
[1725263949279,1.65910568,57733.0,57732.0,0.1880965]
[1725263950231,1.92878459,57733.0,57732.0,0.1880965]
[1725263950489,1.68628959,57733.0,57732.0,0.1880965]
[1725263950725,1.92878459,57733.0,57732.0,0.1880965]
[1725263951202,1.40577959,57733.0,57732.0,0.1880965]
[1725263951431,0.90008759,57733.0,57732.0,0.1880965]
[1725263952587,0.75923691,57733.0,57732.0,0.1880965]
[1725263953328,0.88851617,57733.0,57732.0,0.1880965]
[1725263953555,0.88850991,57733.0,57732.0,0.1880965]
[1725263953795,0.12209665,57733.0,57732.0,0.1880965]
[1725263954309,0.09491274,57733.0,57732.0,0.1880965]